Workbook

Sheet Månedlig budsjettsammendrag
B1: FIRMANAVN
B2: MÅNEDLIG BUDSJETT | E2: Dato
B4: BUDSJETT-TOTALER | C4: ESTIMERT | D4: FAKTISK | E4: DIFFERANSE
B5: Inntekter | C5: =Inntekter[[#Totals],[ESTIMERT]] -> 63,300.00 | D5: =Inntekter[[#Totals],[FAKTISK]] -> 57,450.00 | E5: =Totaler[[#This Row],[FAKTISK]]-Totaler[[#This Row],[ESTIMERT]] -> -5,850.00
B6: Utgifter | C6: =Driftsutgifter[[#Totals],[ESTIMERT]]+Personalutgifter[[#Totals],[ESTIMERT]] -> 54,500.00 | D6: =Driftsutgifter[[#Totals],[FAKTISK]]+Personalutgifter[[#Totals],[FAKTISK]] -> 49,630.00 | E6: =Totaler[[#This Row],[FAKTISK]]-Totaler[[#This Row],[ESTIMERT]] -> -4,870.00
B7: Saldo (inntekter minus utgifter) | C7: =C5-C6 -> 8,800.00 | D7: =D5-D6 -> 7,820.00 | E7: =Totaler[[#Totals],[FAKTISK]]-Totaler[[#Totals],[ESTIMERT]] -> -980.00
B9: Diagrammet for budsjettoversikt vises i denne cellen. De fem største driftsutgiftene oppdateres automatisk i tabellen FemStørsteUtgifter nedenfor.
B10: HVA ER DE FEM STØRSTE DRIFTSUTGIFTENE?
B11: UTGIFT | C11: BELØP | D11: % AV UTGIFTER | E11: 15 % REDUSERING
B12: =INDEX(Driftsutgifter[],MATCH(DeFemStørsteUtgiftene[[#This Row],[BELØP]],Driftsutgifter[FEM STØRSTE BELØP],0),1) -> Vedlikehold og reparasjoner | C12: =LARGE(Driftsutgifter[FEM STØRSTE BELØP],1) -> 4,600.00 | D12: =DeFemStørsteUtgiftene[[#This Row],[BELØP]]/$D$6 -> 9.3 % | E12: =DeFemStørsteUtgiftene[[#This Row],[BELØP]]*0.15 -> 690.00
B13: =INDEX(Driftsutgifter[],MATCH(DeFemStørsteUtgiftene[[#This Row],[BELØP]],Driftsutgifter[FEM STØRSTE BELØP],0),1) -> Utstyr | C13: =LARGE(Driftsutgifter[FEM STØRSTE BELØP],2) -> 4,500.00 | D13: =DeFemStørsteUtgiftene[[#This Row],[BELØP]]/$D$6 -> 9.1 % | E13: =DeFemStørsteUtgiftene[[#This Row],[BELØP]]*0.15 -> 675.00
B14: =INDEX(Driftsutgifter[],MATCH(DeFemStørsteUtgiftene[[#This Row],[BELØP]],Driftsutgifter[FEM STØRSTE BELØP],0),1) -> Leie- eller lånekostnader | C14: =LARGE(Driftsutgifter[FEM STØRSTE BELØP],3) -> 4,500.00 | D14: =DeFemStørsteUtgiftene[[#This Row],[BELØP]]/$D$6 -> 9.1 % | E14: =DeFemStørsteUtgiftene[[#This Row],[BELØP]]*0.15 -> 675.00
B15: =INDEX(Driftsutgifter[],MATCH(DeFemStørsteUtgiftene[[#This Row],[BELØP]],Driftsutgifter[FEM STØRSTE BELØP],0),1) -> Skatter og avgifter | C15: =LARGE(Driftsutgifter[FEM STØRSTE BELØP],4) -> 3,200.00 | D15: =DeFemStørsteUtgiftene[[#This Row],[BELØP]]/$D$6 -> 6.4 % | E15: =DeFemStørsteUtgiftene[[#This Row],[BELØP]]*0.15 -> 480.00
B16: =INDEX(Driftsutgifter[],MATCH(DeFemStørsteUtgiftene[[#This Row],[BELØP]],Driftsutgifter[FEM STØRSTE BELØP],0),1) -> Annonsering | C16: =LARGE(Driftsutgifter[FEM STØRSTE BELØP],5) -> 2,500.00 | D16: =DeFemStørsteUtgiftene[[#This Row],[BELØP]]/$D$6 -> 5.0 % | E16: =DeFemStørsteUtgiftene[[#This Row],[BELØP]]*0.15 -> 375.00
B17: Totalt | C17: =SUBTOTAL(109,DeFemStørsteUtgiftene[BELØP]) -> 19,300.00 | D17: =SUBTOTAL(109,DeFemStørsteUtgiftene[% AV UTGIFTER]) -> 38.9 % | E17: =SUBTOTAL(109,DeFemStørsteUtgiftene[15 % REDUSERING]) -> 2,895.00

Sheet Inntekter
B1: =FIRMANAVN -> FIRMANAVN
B2: =BUDSJETT_Tittel -> MÅNEDLIG BUDSJETT
B4: INNTEKTER | C4: ESTIMERT | D4: FAKTISK | E4: FEM STØRSTE BELØP | F4: DIFFERANSE
B5: Nettosalg | C5: 60,000.00 | D5: 54,000.00 | E5: =Inntekter[[#This Row],[FAKTISK]]+(10^-6)*ROW(Inntekter[[#This Row],[FAKTISK]]) -> 54,000.00 | F5: =Inntekter[[#This Row],[FAKTISK]]-Inntekter[[#This Row],[ESTIMERT]] -> -6,000.00
B6: Finansinntekter | C6: 3,000.00 | D6: 3,000.00 | E6: =Inntekter[[#This Row],[FAKTISK]]+(10^-6)*ROW(Inntekter[[#This Row],[FAKTISK]]) -> 3,000.00 | F6: =Inntekter[[#This Row],[FAKTISK]]-Inntekter[[#This Row],[ESTIMERT]] -> 0.00
B7: Salg av aktiva (profitt/tap) | C7: 300.00 | D7: 450.00 | E7: =Inntekter[[#This Row],[FAKTISK]]+(10^-6)*ROW(Inntekter[[#This Row],[FAKTISK]]) -> 450.00 | F7: =Inntekter[[#This Row],[FAKTISK]]-Inntekter[[#This Row],[ESTIMERT]] -> 150.00
B8: Totale inntekter | C8: =SUBTOTAL(109,Inntekter[ESTIMERT]) -> 63,300.00 | D8: =SUBTOTAL(109,Inntekter[FAKTISK]) -> 57,450.00 | F8: =SUBTOTAL(109,Inntekter[DIFFERANSE]) -> -5,850.00

Sheet Personalutgifter
B1: =FIRMANAVN -> FIRMANAVN
B2: =BUDSJETT_Tittel -> MÅNEDLIG BUDSJETT
B4: PERSONALUTGIFTER | C4: ESTIMERT | D4: FAKTISK | E4: FEM STØRSTE BELØP | F4: DIFFERANSE
B5: Lønn | C5: 9,500.00 | D5: 9,600.00 | E5: =Personalutgifter[[#This Row],[FAKTISK]]+(10^-6)*ROW(Personalutgifter[[#This Row],[FAKTISK]]) -> 9,600.00 | F5: =Personalutgifter[[#This Row],[ESTIMERT]]-Personalutgifter[[#This Row],[FAKTISK]] -> -100.00
B6: Frynsegoder | C6: 4,000.00 | D6: 0.00 | E6: =Personalutgifter[[#This Row],[FAKTISK]]+(10^-6)*ROW(Personalutgifter[[#This Row],[FAKTISK]]) -> 0.00 | F6: =Personalutgifter[[#This Row],[ESTIMERT]]-Personalutgifter[[#This Row],[FAKTISK]] -> 4,000.00
B7: Provisjon | C7: 5,000.00 | D7: 4,500.00 | E7: =Personalutgifter[[#This Row],[FAKTISK]]+(10^-6)*ROW(Personalutgifter[[#This Row],[FAKTISK]]) -> 4,500.00 | F7: =Personalutgifter[[#This Row],[ESTIMERT]]-Personalutgifter[[#This Row],[FAKTISK]] -> 500.00
B8: Totale personalutgifter | C8: =SUBTOTAL(109,Personalutgifter[ESTIMERT]) -> 18,500.00 | D8: =SUBTOTAL(109,Personalutgifter[FAKTISK]) -> 14,100.00 | F8: =SUBTOTAL(109,Personalutgifter[DIFFERANSE]) -> 4,400.00

Sheet Driftsutgifter
B1: =FIRMANAVN -> FIRMANAVN
B2: =BUDSJETT_Tittel -> MÅNEDLIG BUDSJETT
B4: DRIFTSUTGIFTER | C4: ESTIMERT | D4: FAKTISK | E4: FEM STØRSTE BELØP | F4: DIFFERANSE
B5: Annet | C5: 1,000.00 | D5: 750.00 | E5: =Driftsutgifter[[#This Row],[FAKTISK]]+(10^-6)*ROW(Driftsutgifter[[#This Row],[FAKTISK]]) -> 750.00 | F5: =Driftsutgifter[[#This Row],[ESTIMERT]]-Driftsutgifter[[#This Row],[FAKTISK]] -> 250.00
B6: Annonsering | C6: 3,000.00 | D6: 2,500.00 | E6: =Driftsutgifter[[#This Row],[FAKTISK]]+(10^-6)*ROW(Driftsutgifter[[#This Row],[FAKTISK]]) -> 2,500.00 | F6: =Driftsutgifter[[#This Row],[ESTIMERT]]-Driftsutgifter[[#This Row],[FAKTISK]] -> 500.00
B7: Avskrivning | C7: 1,000.00 | D7: 1,000.00 | E7: =Driftsutgifter[[#This Row],[FAKTISK]]+(10^-6)*ROW(Driftsutgifter[[#This Row],[FAKTISK]]) -> 1,000.00 | F7: =Driftsutgifter[[#This Row],[ESTIMERT]]-Driftsutgifter[[#This Row],[FAKTISK]] -> 0.00
B8: Forsikring | C8: 1,300.00 | D8: 1,275.00 | E8: =Driftsutgifter[[#This Row],[FAKTISK]]+(10^-6)*ROW(Driftsutgifter[[#This Row],[FAKTISK]]) -> 1,275.00 | F8: =Driftsutgifter[[#This Row],[ESTIMERT]]-Driftsutgifter[[#This Row],[FAKTISK]] -> 25.00
B9: Juridisk og revisjon | C9: 1,000.00 | D9: 800.00 | E9: =Driftsutgifter[[#This Row],[FAKTISK]]+(10^-6)*ROW(Driftsutgifter[[#This Row],[FAKTISK]]) -> 800.00 | F9: =Driftsutgifter[[#This Row],[ESTIMERT]]-Driftsutgifter[[#This Row],[FAKTISK]] -> 200.00
B10: Kontorutstyr | C10: 800.00 | D10: 750.00 | E10: =Driftsutgifter[[#This Row],[FAKTISK]]+(10^-6)*ROW(Driftsutgifter[[#This Row],[FAKTISK]]) -> 750.00 | F10: =Driftsutgifter[[#This Row],[ESTIMERT]]-Driftsutgifter[[#This Row],[FAKTISK]] -> 50.00
B11: Leie- eller lånekostnader | C11: 4,100.00 | D11: 4,500.00 | E11: =Driftsutgifter[[#This Row],[FAKTISK]]+(10^-6)*ROW(Driftsutgifter[[#This Row],[FAKTISK]]) -> 4,500.00 | F11: =Driftsutgifter[[#This Row],[ESTIMERT]]-Driftsutgifter[[#This Row],[FAKTISK]] -> -400.00
B12: Levering og lagring | C12: 900.00 | D12: 840.00 | E12: =Driftsutgifter[[#This Row],[FAKTISK]]+(10^-6)*ROW(Driftsutgifter[[#This Row],[FAKTISK]]) -> 840.00 | F12: =Driftsutgifter[[#This Row],[ESTIMERT]]-Driftsutgifter[[#This Row],[FAKTISK]] -> 60.00
B13: Leveringskostnader | C13: 2,000.00 | D13: 1,500.00 | E13: =Driftsutgifter[[#This Row],[FAKTISK]]+(10^-6)*ROW(Driftsutgifter[[#This Row],[FAKTISK]]) -> 1,500.00 | F13: =Driftsutgifter[[#This Row],[ESTIMERT]]-Driftsutgifter[[#This Row],[FAKTISK]] -> 500.00
B14: Medlemsavgifter og abonnementer | C14: 500.00 | D14: 525.00 | E14: =Driftsutgifter[[#This Row],[FAKTISK]]+(10^-6)*ROW(Driftsutgifter[[#This Row],[FAKTISK]]) -> 525.00 | F14: =Driftsutgifter[[#This Row],[ESTIMERT]]-Driftsutgifter[[#This Row],[FAKTISK]] -> -25.00
B15: Misligholdt gjeld | C15: 2,000.00 | D15: 2,000.00 | E15: =Driftsutgifter[[#This Row],[FAKTISK]]+(10^-6)*ROW(Driftsutgifter[[#This Row],[FAKTISK]]) -> 2,000.00 | F15: =Driftsutgifter[[#This Row],[ESTIMERT]]-Driftsutgifter[[#This Row],[FAKTISK]] -> 0.00
B16: Offentlige tjenester | C16: 1,400.00 | D16: 1,385.00 | E16: =Driftsutgifter[[#This Row],[FAKTISK]]+(10^-6)*ROW(Driftsutgifter[[#This Row],[FAKTISK]]) -> 1,385.00 | F16: =Driftsutgifter[[#This Row],[ESTIMERT]]-Driftsutgifter[[#This Row],[FAKTISK]] -> 15.00
B17: Porto | C17: 400.00 | D17: 350.00 | E17: =Driftsutgifter[[#This Row],[FAKTISK]]+(10^-6)*ROW(Driftsutgifter[[#This Row],[FAKTISK]]) -> 350.00 | F17: =Driftsutgifter[[#This Row],[ESTIMERT]]-Driftsutgifter[[#This Row],[FAKTISK]] -> 50.00
B18: Rabatter ved kontantbetaling | C18: 1,500.00 | D18: 2,175.00 | E18: =Driftsutgifter[[#This Row],[FAKTISK]]+(10^-6)*ROW(Driftsutgifter[[#This Row],[FAKTISK]]) -> 2,175.00 | F18: =Driftsutgifter[[#This Row],[ESTIMERT]]-Driftsutgifter[[#This Row],[FAKTISK]] -> -675.00
B19: Rente | C19: 2,000.00 | D19: 2,200.00 | E19: =Driftsutgifter[[#This Row],[FAKTISK]]+(10^-6)*ROW(Driftsutgifter[[#This Row],[FAKTISK]]) -> 2,200.00 | F19: =Driftsutgifter[[#This Row],[ESTIMERT]]-Driftsutgifter[[#This Row],[FAKTISK]] -> -200.00
B20: Salgsutgifter | C20: 350.00 | D20: 400.00 | E20: =Driftsutgifter[[#This Row],[FAKTISK]]+(10^-6)*ROW(Driftsutgifter[[#This Row],[FAKTISK]]) -> 400.00 | F20: =Driftsutgifter[[#This Row],[ESTIMERT]]-Driftsutgifter[[#This Row],[FAKTISK]] -> -50.00
B21: Skatter og avgifter | C21: 3,000.00 | D21: 3,200.00 | E21: =Driftsutgifter[[#This Row],[FAKTISK]]+(10^-6)*ROW(Driftsutgifter[[#This Row],[FAKTISK]]) -> 3,200.00 | F21: =Driftsutgifter[[#This Row],[ESTIMERT]]-Driftsutgifter[[#This Row],[FAKTISK]] -> -200.00
B22: Telefon | C22: 250.00 | D22: 280.00 | E22: =Driftsutgifter[[#This Row],[FAKTISK]]+(10^-6)*ROW(Driftsutgifter[[#This Row],[FAKTISK]]) -> 280.00 | F22: =Driftsutgifter[[#This Row],[ESTIMERT]]-Driftsutgifter[[#This Row],[FAKTISK]] -> -30.00
B23: Utstyr | C23: 5,000.00 | D23: 4,500.00 | E23: =Driftsutgifter[[#This Row],[FAKTISK]]+(10^-6)*ROW(Driftsutgifter[[#This Row],[FAKTISK]]) -> 4,500.00 | F23: =Driftsutgifter[[#This Row],[ESTIMERT]]-Driftsutgifter[[#This Row],[FAKTISK]] -> 500.00
B24: Vedlikehold og reparasjoner | C24: 4,500.00 | D24: 4,600.00 | E24: =Driftsutgifter[[#This Row],[FAKTISK]]+(10^-6)*ROW(Driftsutgifter[[#This Row],[FAKTISK]]) -> 4,600.00 | F24: =Driftsutgifter[[#This Row],[ESTIMERT]]-Driftsutgifter[[#This Row],[FAKTISK]] -> -100.00
B25: Totale driftskostnader | C25: =SUBTOTAL(109,Driftsutgifter[ESTIMERT]) -> 36,000.00 | D25: =SUBTOTAL(109,Driftsutgifter[FAKTISK]) -> 35,530.00 | F25: =SUBTOTAL(109,Driftsutgifter[DIFFERANSE]) -> 470.00
